bitfinex-derivatives/quotes_ETHF0:USTF0_20250326
["timestamp","ask_amount","ask_price","bid_price","bid_amount"]
[1743028247430,0.99997,1999.8,1999.7,7.52479]
[1743028247618,0.99997,1999.8,1999.7,4.20779]
[1743028247814,0.99997,1999.8,1999.6,1.4284]
[1743028247815,3.2078,1999.8,1999.3,5.71587356]
[1743028248127,1.00014,1999.6,1999.5,2.4285]
[1743028248325,1.00014,1999.6,1999.5,43.2285]
[1743028249424,1.00014,1999.6,1999.5,46.4363]
[1743028250330,1.00014,1999.6,1999.5,45.4362]
[1743028250530,1.00014,1999.6,1999.5,42.2284]
[1743028250731,1.69194,1999.6,1999.5,40.8]
[1743028250923,1.69194,1999.6,1999.3,5.58380356]
[1743028250924,1.00018,1999.4,1999.3,3.21530356]
[1743028251125,1.00018,1999.4,1999.3,0.00750356]
[1743028251433,1.00018,1999.4,1999.3,1.00773356]
[1743028251623,1.00018,1999.4,1999.3,0.00750356]
[1743028251823,1.00018,1999.4,1999.3,1.37410356]
[1743028252027,1.00018,1999.4,1999.3,2.37433356]
[1743028252727,1.00018,1999.4,1999.3,1.37410356]
[1743028253130,1.00018,1999.4,1999.3,2.37433356]
[1743028253532,1.00018,1999.4,1999.3,1.37410356]
[1743028253726,1.00018,1999.4,1999.3,2.37433356]
[1743028255428,1.4336,1999.5,1999.4,1.00018]
[1743028255629,2.43373,1999.5,1999.4,2.38878]
[1743028256428,1.69188,1999.6,1999.5,1.00013]
[1743028256635,2.31328,1999.6,1999.5,3.08823]
[1743028256931,2.31328,1999.6,1999.5,3.76173]
[1743028257727,1.3132,1999.6,1999.5,3.76173]
[1743028257928,2.31328,1999.6,1999.5,3.76173]
[1743028260237,1.3132,1999.6,1999.5,3.76173]
[1743028261238,2.31328,1999.6,1999.5,3.76173]
[1743028261434,1.3267,1999.8,1999.5,5.9694]
[1743028261638,2.30557,1999.8,1999.7,1.00002]
[1743028262033,2.30557,1999.8,1999.7,41.80002]
[1743028263233,2.30557,1999.8,1999.7,40.8]
[1743028263440,1.00018,1999.5,1999.4,1.00014]
[1743028263635,1.00018,1999.5,1999.4,2.35064]
[1743028264238,1.00018,1999.4,1999.3,41.80769356]
[1743028264537,2.38298,1999.4,1999.3,2.45349356]
[1743028264936,2.38298,1999.4,1999.3,43.25349356]
[1743028265935,2.38298,1999.4,1999.3,0.00750356]
[1743028266139,4.88298,1999.4,1999.3,0.00750356]
[1743028266638,8.19898,1999.4,1999.3,0.00750356]
[1743028267040,1.00038,1999.0,1998.9,45.4536]
[1743028267228,1.00038,1999.0,1998.9,4.20823]
[1743028267435,2.34017,1999.1,1999.0,1.00038]
[1743028267741,2.34017,1999.1,1999.0,41.80038]
[1743028268134,2.34017,1999.1,1999.0,40.8]
[1743028268338,2.34017,1999.1,1999.0,41.80038]
[1743028268537,2.34017,1999.1,1999.0,1.00038]
[1743028268735,2.34013,1999.1,1999.0,1.00038]
[1743028269043,2.34013,1999.1,1999.0,43.15758]
[1743028269441,1.3398,1999.1,1999.0,43.15758]
[1743028269642,2.34013,1999.1,1999.0,43.15758]
[1743028271442,1.3398,1999.1,1999.0,43.15758]
[1743028271742,2.34013,1999.1,1999.0,43.15758]
[1743028279348,1.3398,1999.1,1999.0,43.15758]
[1743028280753,2.34013,1999.1,1999.0,43.15758]
[1743028281049,1.3398,1999.1,1999.0,43.15758]
[1743028281549,0.00750356,1999.2,1999.1,1.00033]
[1743028281750,0.00750356,1999.2,1999.1,4.20813]
[1743028282153,1.00778356,1999.2,1999.1,4.20813]
[1743028282352,1.00778356,1999.2,1999.1,41.80033]
[1743028282852,1.00778356,1999.2,1999.1,40.8]
[1743028283054,1.00778356,1999.2,1999.1,41.80033]
[1743028283254,2.39488356,1999.2,1999.1,41.80033]
[1743028283457,2.39488356,1999.2,1999.1,1.00033]
[1743028283849,1.39460356,1999.2,1999.1,1.00033]
[1743028284050,2.39488356,1999.2,1999.1,41.80033]
[1743028285448,2.39488356,1999.2,1999.1,43.10643]
[1743028287960,2.39488356,1999.2,1999.1,2.30643]
[1743028291453,2.39488356,1999.2,1999.1,1.3061]
[1743028291658,2.39488356,1999.2,1998.9,4.21569356]
[1743028291659,1.00038,1999.0,1998.9,4.21569356]
[1743028292058,1.00038,1999.0,1998.9,0.00750356]
[1743028292461,1.00038,1999.0,1998.9,1.00793356]
[1743028292764,1.00038,1999.0,1998.9,0.00750356]
[1743028293063,2.34278,1999.0,1998.9,2.43283356]
[1743028293463,2.34278,1999.0,1998.9,1.43240356]
[1743028293664,2.34278,1999.0,1998.9,2.43283356]
[1743028294276,2.34278,1999.0,1998.9,0.00750356]
[1743028296869,2.34278,1999.0,1998.9,0.05781779]
[1743028297460,2.34278,1999.0,1998.9,1.40691779]
[1743028300469,2.34278,1999.0,1998.9,0.05781779]
[1743028300672,5.55058,1999.0,1998.9,0.05781779]
[1743028301874,6.21498,1999.0,1998.9,0.05781779]
[1743028304266,3.00718,1999.0,1998.9,0.05781779]
[1743028304462,6.21498,1999.0,1998.9,0.05781779]
[1743028304874,3.00718,1999.0,1998.9,0.05781779]
[1743028306669,3.00718,1999.0,1998.9,1.37071779]
[1743028306976,3.00718,1999.0,1998.9,2.79701779]
[1743028307477,3.00718,1999.0,1998.9,1.48411779]
[1743028307672,3.00718,1999.0,1998.9,0.05781779]
[1743028308175,3.00718,1999.0,1998.9,2.48454779]
[1743028308375,3.00718,1999.0,1998.9,1.48411779]
[1743028310070,3.00718,1999.0,1998.9,2.48454779]
[1743028310866,3.00718,1999.0,1998.9,1.48411779]
[1743028311779,3.00718,1999.0,1998.9,2.48454779]
[1743028314079,3.18362,1999.1,1998.9,2.48454779]
[1743028314080,9.04530356,1999.2,1998.9,2.48454779]
[1743028314382,6.83009,1999.6,1999.5,1.00013]
[1743028314582,1.00013,1999.5,1999.4,3.66194]
[1743028314782,2.39593,1999.5,1999.4,3.66198]
[1743028314985,2.39593,1999.5,1999.4,2.71211423]
[1743028315178,1.65388,1999.7,1999.4,3.71229423]
[1743028315482,3.04968,1999.7,1999.6,1.00008]
[1743028315685,1.00008,1999.6,1999.5,2.30709]
[1743028315977,2.43148,1999.6,1999.5,2.35740423]
[1743028316183,1.4314,1999.6,1999.5,2.35740423]
[1743028316387,2.43148,1999.6,1999.5,2.35740423]
[1743028317885,1.0048889,1999.7,1999.6,1.00008]
[1743028318079,1.0048889,1999.7,1999.6,2.41748]
[1743028319081,1.0048889,1999.7,1999.6,2.46779423]
[1743028319588,0.0048689,1999.7,1999.6,2.46779423]
[1743028319884,1.0048889,1999.7,1999.6,5.67559423]
[1743028320385,0.0048689,1999.7,1999.6,5.67559423]
[1743028321181,0.0048689,1999.7,1999.6,8.98559423]
[1743028322791,0.0048689,1999.7,1999.6,49.78559423]
[1743028324591,0.99986,2000.1,1999.7,2.49997]
[1743028324792,2.41686,2000.1,2000.0,0.99987]
[1743028325089,2.41686,2000.1,2000.0,1.05018423]
[1743028327392,2.41686,2000.1,2000.0,0.05031423]
[1743028330387,2.41686,2000.1,2000.0,1.05018423]
[1743028330593,2.41686,2000.1,2000.0,0.05031423]
[1743028331486,2.41686,2000.1,2000.0,1.05018423]
[1743028331689,2.41686,2000.1,2000.0,0.05031423]
[1743028333494,2.41686,2000.1,2000.0,0.03794177]
[1743028334490,1.00002,1999.7,1999.6,1.3745]
[1743028334690,1.00002,1999.7,1999.6,2.37458]
[1743028334896,1.00002,1999.7,1999.6,1.3745]
[1743028335797,1.00008,1999.6,1999.5,1.00011]
[1743028335993,2.34398,1999.6,1999.5,1.00011]
[1743028336195,2.34398,1999.6,1999.5,1.3492]
[1743028336592,2.50037,1999.5,1999.2,4.20803]
[1743028336893,1.00018,1999.4,1999.3,1.3492]
[1743028337094,2.36178,1999.4,1999.3,2.34943]
[1743028338093,2.36178,1999.4,1999.3,1.3492]
[1743028338295,2.36178,1999.4,1999.3,2.34943]
[1743028338891,2.36178,1999.4,1999.3,1.3492]
[1743028339899,1.00023,1999.3,1999.2,3.2078]
[1743028340097,2.35543,1999.3,1999.2,4.6311]
[1743028341098,2.35543,1999.3,1999.2,5.63138]
[1743028345205,3.07153,1999.3,1999.2,4.6311]
[1743028345804,3.07153,1999.3,1999.2,5.63138]
[1743028345994,3.07153,1999.3,1999.2,4.6311]
[1743028346502,3.07153,1999.3,1999.2,5.63138]
[1743028349102,3.07153,1999.3,1999.2,4.6311]
[1743028349498,3.07153,1999.3,1999.2,1.4233]
[1743028349704,1.00033,1999.1,1999.0,2.41251]
[1743028350613,1.00033,1999.1,1999.0,5.62031]
[1743028350811,1.00033,1999.1,1999.0,1.4122]
[1743028351014,1.00038,1999.0,1998.9,40.80750356]
[1743028351311,1.68778,1999.0,1998.9,0.00750356]
[1743028351512,3.02908,1999.0,1998.9,0.00750356]
[1743028355527,3.02908,1999.0,1998.9,1.37400356]
[1743028356526,0.696,1999.1,1999.0,1.00038]
[1743028356527,1.00037,1999.1,1999.0,1.00038]
[1743028356828,5.83,1999.2,1999.1,1.00033]
[1743028357027,5.83,1999.2,1999.1,2.36683]
[1743028357327,5.83,1999.2,1999.1,43.16683]
[1743028357531,6.83028,1999.2,1999.1,43.16683]
[1743028357722,5.83,1999.2,1999.1,43.16683]
[1743028357929,6.83028,1999.2,1999.1,43.16683]
[1743028358428,5.83,1999.2,1999.1,43.16683]
[1743028361925,1.00026,1999.3,1999.2,1.00028]
[1743028362133,2.43986,1999.3,1999.2,1.3483]
[1743028362431,1.00033,1999.1,1999.0,4.92393]
[1743028363733,2.43993,1999.1,1999.0,6.27223]
[1743028364523,1.00033,1999.1,1999.0,6.27223]
[1743028365737,1.00031,1999.2,1999.1,1.00033]
[1743028365927,2.31731,1999.2,1999.1,2.32243]
[1743028368427,1.3592,1999.4,1999.2,1.00023]
[1743028368632,2.7993,1999.4,1999.3,1.3906]
[1743028369136,1.00018,1999.4,1999.3,5.59858]
[1743028369430,2.44028,1999.4,1999.3,5.59858]
[1743028369628,2.44028,1999.4,1999.3,3.76318]
[1743028372429,6.83016,1999.5,1999.4,1.00018]
[1743028372635,2.38582,1999.6,1999.5,1.00013]
[1743028373034,2.38582,1999.6,1999.5,2.39283]
[1743028373229,1.00012,1999.6,1999.5,2.39283]
[1743028373532,1.00007,1999.7,1999.6,1.00002]
[1743028373839,1.00007,1999.7,1999.6,3.01692]
[1743028374936,1.00002,1999.7,1999.6,6.22472]
[1743028375233,1.00002,1999.8,1999.7,0.99997]
[1743028375439,1.00002,1999.8,1999.7,3.01817]
[1743028376434,1.00002,1999.7,1999.6,1.00007]
[1743028376638,1.00008,1999.6,1999.5,8.87868]
[1743028376942,1.00008,1999.6,1999.5,7.51588]
[1743028381548,1.00005,1999.7,1999.6,1.00002]
[1743028381733,0.6892,1999.8,1999.6,0.7074]
[1743028381936,3.2078,2000.2,1999.9,0.99992]
[1743028382235,0.99986,2000.1,2000.0,2.38252]
[1743028382436,5.83,2000.7,2000.0,1.3827]
[1743028382642,0.99973,2000.4,2000.3,0.99967]
[1743028382954,0.99973,2000.3,2000.2,4.20754]
[1743028383133,1.4143,2000.6,2000.1,40.80750356]
[1743028383134,0.99978,2000.2,2000.1,41.80728356]
[1743028383337,0.99978,2000.2,2000.1,45.11428356]
[1743028383638,0.99978,2000.2,2000.1,0.00750356]
[1743028384245,1.71808,2000.2,2000.1,0.00750356]
[1743028385547,3.14068,2000.2,2000.1,0.00750356]
[1743028386047,1.4226,2000.2,2000.1,1.00732356]
[1743028386250,0.99978,2000.3,2000.2,0.99972]
[1743028386453,3.16271,2000.4,2000.3,0.99973]
[1743028386655,3.16271,2000.4,2000.3,1.65463]
[1743028387048,0.99973,2000.3,2000.2,3.2078]
[1743028387253,0.99978,2000.2,2000.1,1.00729356]
[1743028387653,2.44606,2000.3,2000.2,0.99978]
[1743028388552,0.99978,2000.2,2000.1,0.00750356]
[1743028388849,2.44608,2000.2,2000.1,0.00750356]
[1743028390347,2.44608,2000.2,2000.1,1.00732356]
[1743028390547,2.44608,2000.2,2000.1,0.00750356]
[1743028391751,2.44608,2000.2,2000.1,1.00732356]
[1743028392056,2.44608,2000.2,2000.1,0.00750356]
[1743028392254,2.44608,2000.2,2000.1,1.00732356]
[1743028392456,2.44608,2000.2,2000.1,0.00750356]
[1743028393961,2.44608,2000.2,2000.1,1.00732356]
[1743028394152,2.44608,2000.2,2000.1,0.00750356]
[1743028394756,2.44608,2000.2,2000.1,1.00732356]
[1743028394962,3.216,2000.4,2000.1,1.00732356]
[1743028394963,0.99976,2000.3,2000.2,0.99978]
[1743028395259,2.35886,2000.3,2000.2,5.54668]
[1743028395461,2.35886,2000.3,2000.2,6.98608]
[1743028395657,1.3591,2000.3,2000.2,6.98608]
[1743028395856,0.99972,2000.4,2000.3,0.99973]
[1743028396060,2.35882,2000.4,2000.3,2.43913]
[1743028396252,0.99972,2000.4,2000.3,2.43913]
[1743028400363,1.397,2000.5,2000.4,0.99968]
[1743028400364,2.39666,2000.5,2000.4,0.99968]
[1743028400560,2.39666,2000.5,2000.4,2.34158]
[1743028401164,0.6835,2000.7,2000.6,0.99958]
[1743028401359,0.99953,2000.7,2000.6,0.99958]
[1743028401854,5.67915,2000.9,2000.4,3.306]
[1743028401855,0.99963,2000.5,2000.4,3.306]
[1743028402052,0.99963,2000.5,2000.4,0.99963]
[1743028402256,0.99968,2000.4,2000.3,0.99969]
[1743028402456,3.06298,2000.4,2000.3,2.32519]
[1743028403763,0.99973,2000.3,2000.2,0.99974]
[1743028403968,2.40463,2000.3,2000.2,2.35534]
[1743028404656,2.40463,2000.3,2000.2,2.35538]
[1743028404859,2.40463,2000.3,2000.2,1.3556]
[1743028405060,0.99978,2000.2,2000.1,0.00750356]
[1743028405367,2.40468,2000.2,2000.1,0.00750356]
[1743028406367,2.40468,2000.2,2000.1,1.00732356]
[1743028406574,2.40468,2000.2,2000.1,2.36292356]
[1743028408959,0.99975,2000.3,2000.2,0.99978]
[1743028409164,2.1052,2000.4,2000.3,1.65453]
[1743028409465,3.10488,2000.4,2000.3,1.65453]
[1743028409973,3.10488,2000.4,2000.3,3.72143]
[1743028410167,2.1052,2000.4,2000.3,3.72143]
[1743028410368,5.83,2000.5,2000.4,0.99968]
[1743028410576,5.83,2000.5,2000.4,2.32388]
[1743028410870,5.83,2000.5,2000.4,5.62988]
[1743028411574,5.70613,2001.1,2000.8,0.99948]
[1743028411575,1.3258,2000.9,2000.8,0.99948]
[1743028411762,2.32525,2000.9,2000.8,0.99948]
[1743028412159,2.32523,2000.9,2000.8,0.99948]
[1743028412370,1.3258,2000.9,2000.8,0.99948]
[1743028412572,1.3258,2000.9,2000.8,1.3242]
[1743028412573,0.99943,2000.9,2000.8,1.3242]
[1743028412765,2.33873,2000.9,2000.8,1.3242]
[1743028413270,1.3393,2000.9,2000.8,2.32365]
[1743028413673,2.33873,2000.9,2000.8,2.32365]
[1743028414066,1.3393,2000.9,2000.8,2.32365]
[1743028414470,2.33873,2000.9,2000.8,2.32365]
[1743028414868,1.3393,2000.9,2000.8,2.32365]
[1743028415171,2.33873,2000.9,2000.8,2.32365]
[1743028415665,1.3393,2000.9,2000.8,2.32365]
[1743028416068,2.33873,2000.9,2000.8,2.32365]
[1743028416876,1.3393,2000.9,2000.8,2.32365]
[1743028417070,2.33873,2000.9,2000.8,2.32365]
[1743028417279,1.3393,2000.9,2000.8,2.32365]
[1743028417977,0.6632,2001.0,2000.9,0.99943]
[1743028418167,1.3334,2001.0,2000.9,2.44643]
[1743028418373,2.33278,2001.0,2000.9,2.44643]
[1743028418581,2.33278,2001.0,2000.9,1.447]
[1743028418976,2.33278,2001.0,2000.9,2.44643]
[1743028422482,2.33278,2001.0,2000.9,1.447]
[1743028422675,2.33278,2001.0,2000.9,2.44643]
[1743028422873,1.3334,2001.0,2000.9,2.44643]
[1743028423473,11.63198,2001.4,2000.9,2.44643]
[1743028423474,5.83,2001.6,2001.0,2.49832]
[1743028423678,0.99921,2001.4,2001.3,0.9992]
[1743028424180,2.0268,2001.4,2001.3,0.9992]
[1743028424479,2.0268,2001.4,2001.3,3.0942]
[1743028425082,3.02598,2001.4,2001.3,3.0942]
[1743028427385,1.3429,2001.4,2001.3,3.0942]
[1743028427782,2.34208,2001.4,2001.3,3.0942]
[1743028428386,1.3429,2001.4,2001.3,3.0942]
[1743028428591,2.34208,2001.4,2001.3,3.0942]
[1743028430890,2.34208,2001.4,2001.3,1.4222]
[1743028431080,2.34208,2001.4,2001.2,0.99924]
[1743028431081,0.99923,2001.3,2001.2,0.99924]
[1743028431388,3.06393,2001.3,2001.2,2.41954]
[1743028440503,1.4001,2001.4,2001.3,0.99915]
[1743028440802,1.3512,2001.6,2001.4,0.99913]
[1743028441097,2.35188,2001.5,2001.4,0.99913]
[1743028441601,2.35183,2001.5,2001.4,0.99913]
[1743028441893,1.3527,2001.5,2001.4,0.99913]
[1743028443192,2.49745,2001.8,2001.4,0.99913]
[1743028443193,0.99903,2001.8,2001.7,0.99899]
[1743028443393,2.35173,2001.8,2001.7,0.99899]
[1743028445598,2.35173,2001.8,2001.6,0.99903]
[1743028445599,0.99908,2001.7,2001.6,0.99903]
[1743028445799,2.31868,2001.7,2001.6,0.99903]
[1743028448406,0.99908,2001.6,2001.5,3.2078]
[1743028448702,0.99908,2001.6,2001.5,4.20693]
[1743028448703,3.02518,2001.6,2001.5,4.20693]
[1743028450801,0.99913,2001.5,2001.4,3.302]
[1743028451003,0.99922,2001.4,2001.3,4.30118]
[1743028451605,2.37942,2001.4,2001.3,4.30118]
[1743028452001,0.99923,2001.3,2001.2,8.18793]
[1743028452200,3.08093,2001.3,2001.2,8.18793]
[1743028453000,2.0817,2001.3,2001.2,8.18793]
[1743028453205,0.99922,2001.4,2001.3,0.99923]
[1743028453706,2.33872,2001.4,2001.3,0.99923]
[1743028454900,2.33872,2001.4,2001.2,7.1887]
[1743028454901,0.99923,2001.3,2001.2,8.18793]
[1743028455113,2.33873,2001.3,2001.2,8.18793]
[1743028455609,2.33873,2001.3,2001.2,9.62153]
[1743028456497,2.33873,2001.3,2001.2,6.31953]
[1743028456810,2.33873,2001.3,2001.2,5.64068]
[1743028458310,0.99928,2001.2,2001.1,0.00750356]
[1743028458609,3.75558,2001.2,2001.1,0.00750356]
[1743028465724,6.96338,2001.2,2001.1,0.00750356]
[1743028468827,0.99978,2000.3,2000.2,0.99976]
[1743028469628,0.9998,2000.2,2000.1,0.99978]
[1743028470120,0.9998,2000.2,2000.1,3.74588]
[1743028470824,0.9998,2000.2,2000.1,2.7461]
[1743028472332,2.399,2000.2,2000.1,2.7461]
[1743028479739,2.399,2000.2,2000.1,3.74592]
[1743028479945,2.399,2000.2,2000.1,2.7461]
[1743028480730,2.399,2000.2,2000.1,3.74592]
[1743028484430,0.00750356,2000.5,2000.1,6.0491]
[1743028484738,0.99972,2000.4,2000.3,0.99968]
[1743028484941,0.99972,2000.4,2000.3,2.39858]
[1743028486644,2.36492,2000.4,2000.3,2.39858]
[1743028487045,0.99972,2000.4,2000.3,2.39858]
[1743028487439,0.00750356,2000.5,2000.4,0.99968]
[1743028487739,0.99951,2000.8,2000.7,0.99953]
[1743028488642,0.99951,2000.8,2000.7,1.71043]
[1743028490444,2.40111,2000.8,2000.7,1.71043]
[1743028492646,4.20725,2000.9,2000.8,0.99948]
[1743028492846,4.20725,2000.9,2000.8,2.43878]
[1743028493032,5.70589,2001.3,2000.8,2.43878]
[1743028493233,2.36266,2001.1,2001.0,0.9993]
[1743028493546,2.36266,2001.1,2001.0,2.4386]
[1743028493740,0.99932,2001.2,2001.1,0.99933]
[1743028493937,6.27968,2001.3,2001.2,0.99928]
[1743028494244,6.27968,2001.3,2001.1,1.4393]
[1743028494245,0.99928,2001.2,2001.1,1.4393]
[1743028494438,2.36258,2001.2,2001.1,1.4393]
[1743028494837,2.36258,2001.2,2001.1,2.43863]
[1743028497746,0.99928,2001.3,2001.2,0.99924]
[1743028498044,2.37618,2001.3,2001.2,2.38764]
[1743028498939,1.71145,2001.5,2001.4,0.99918]
[1743028499145,3.13585,2001.5,2001.4,0.99918]
[1743028499344,2.1367,2001.5,2001.4,0.99918]
[1743028499543,1.4244,2001.5,2001.4,43.16278]
[1743028500047,2.42353,2001.5,2001.4,43.16278]
[1743028501451,1.4244,2001.5,2001.4,43.16278]
[1743028501747,2.42353,2001.5,2001.4,43.16278]
[1743028502445,2.42353,2001.5,2001.4,42.1636]
[1743028502650,1.4244,2001.5,2001.4,0.99918]
[1743028502841,2.42357,2001.5,2001.4,0.99918]
[1743028503248,1.4244,2001.5,2001.4,0.99918]
[1743028503444,2.42353,2001.5,2001.4,1.72148]
[1743028503643,1.4244,2001.5,2001.4,1.72148]
[1743028503849,2.42353,2001.5,2001.4,1.72148]
[1743028504348,4.87457,2001.7,2001.6,0.99908]
[1743028504943,6.31287,2001.7,2001.6,2.43298]
[1743028505153,5.3138,2001.7,2001.6,2.43298]
[1743028505346,6.31283,2001.7,2001.6,2.43298]
[1743028506448,5.3138,2001.7,2001.6,2.43298]
[1743028507047,6.31283,2001.7,2001.6,2.43298]
[1743028507945,5.3138,2001.7,2001.6,2.43298]
[1743028508147,4.6461,2001.7,2001.6,2.43298]
[1743028509850,0.99896,2001.9,2001.8,0.99898]
[1743028510149,2.43766,2001.9,2001.8,0.99898]
[1743028510554,2.43766,2001.9,2001.8,2.35008]
[1743028512952,5.83,2002.3,2001.9,2.49723]
[1743028513153,5.83,2002.3,2002.0,2.39546]
[1743028513154,0.99883,2002.1,2002.0,2.39546]
[1743028513356,0.99893,2001.9,2001.8,4.29896]
[1743028513750,1.3086,2002.0,2001.8,4.29896]
[1743028513751,2.30751,2002.0,2001.9,0.99893]
[1743028514657,0.99893,2001.9,2001.8,2.43753]
[1743028514851,1.444,2001.9,2001.8,2.43753]
[1743028515159,2.44293,2001.9,2001.8,2.43753]
[1743028517053,2.44293,2001.9,2001.8,1.4386]
[1743028517261,0.99898,2001.8,2001.7,0.99902]
[1743028517456,3.06068,2001.8,2001.7,0.99902]
[1743028518757,0.99903,2001.7,2001.6,2.44334]
[1743028518958,2.34813,2001.7,2001.6,2.44334]
[1743028526962,3.07003,2001.7,2001.6,2.44334]
[1743028527358,0.99901,2001.8,2001.7,0.99897]
[1743028527657,0.99901,2001.8,2001.7,2.40667]
[1743028527859,0.99901,2001.8,2001.7,1.4077]
[1743028528060,0.99901,2001.8,2001.7,2.40673]
[1743028529261,0.99901,2001.8,2001.7,1.4077]
[1743028529462,4.20681,2001.8,2001.7,1.4077]
[1743028530266,0.99908,2001.6,2001.5,0.6961]
[1743028530563,0.99913,2001.5,2001.4,4.20694]
[1743028530769,2.41633,2001.5,2001.4,4.20694]
[1743028534469,0.99912,2001.6,2001.5,0.99906]
[1743028534664,0.99907,2001.7,2001.6,0.99903]
[1743028534865,2.31707,2001.7,2001.6,3.12123]
[1743028535065,2.31707,2001.7,2001.6,2.1222]
[1743028535265,3.02297,2001.7,2001.6,3.12128]
[1743028541479,2.0239,2001.7,2001.4,4.20697]
[1743028541780,0.99928,2001.3,2001.1,9.6891]
[1743028541975,0.99928,2001.3,2001.2,1.414]
[1743028543273,0.99928,2001.3,2001.2,2.41328]
[1743028543675,0.99928,2001.3,2001.2,1.414]
[1743028543879,0.99928,2001.3,2001.2,2.41328]
[1743028544078,0.99928,2001.3,2001.2,1.414]
[1743028545378,0.99928,2001.3,2001.2,2.41328]
[1743028546280,0.6754,2001.4,2001.3,0.99923]
[1743028546481,0.99918,2001.4,2001.3,0.99923]
[1743028546880,3.2078,2001.5,2001.4,0.99918]
[1743028547083,2.35611,2001.6,2001.5,0.99913]
[1743028547677,2.35611,2001.6,2001.4,0.6671]
[1743028547678,0.99913,2001.5,2001.4,1.66623]
[1743028548789,2.35611,2001.6,2001.5,0.99913]
[1743028548991,0.99908,2001.7,2001.6,0.99905]
[1743028549983,0.99907,2001.7,2001.6,0.99904]
[1743028550184,5.55382,2001.8,2001.7,0.99903]
[1743028550487,2.34602,2001.8,2001.7,0.99903]
[1743028551284,0.99906,2001.7,2001.6,0.99904]
[1743028551484,2.34601,2001.8,2001.7,0.99903]
[1743028554989,2.34601,2001.8,2001.6,0.99905]
[1743028554990,0.99907,2001.7,2001.6,0.99905]
[1743028555292,0.99908,2001.6,2001.5,0.9991]
[1743028555594,2.33948,2001.6,2001.5,1.683]
[1743028556094,1.3404,2001.6,2001.5,1.683]
[1743028556491,5.5538,2001.8,2001.5,0.6839]
[1743028556693,5.5538,2001.8,2001.6,0.99908]
[1743028556694,1.4058,2001.7,2001.6,0.99908]
[1743028556900,2.40483,2001.7,2001.6,0.99908]
[1743028557090,1.4058,2001.7,2001.6,0.99908]
[1743028557288,2.40483,2001.7,2001.6,0.99908]
[1743028557487,4.20681,2001.8,2001.7,0.99903]
[1743028558796,5.61261,2001.8,2001.7,0.99903]
[1743028560800,5.61258,2001.8,2001.7,0.99903]
[1743028560998,4.6136,2001.8,2001.7,0.99903]
[1743028561191,0.99893,2002.0,2001.9,0.99888]
[1743028561391,2.38663,2002.0,2001.9,0.99888]
[1743028561801,1.3877,2002.0,2001.9,0.99888]
[1743028562301,2.38658,2002.0,2001.9,1.72008]
[1743028564087,0.99885,2002.1,2002.0,0.99883]
[1743028564293,1.66725,2002.1,2002.0,0.99888]
[1743028564701,0.99893,2002.0,2001.9,0.99888]
[1743028564901,0.99893,2001.9,2001.8,1.67616]
[1743028565103,0.99898,2001.8,2001.7,0.99898]
[1743028565304,0.99908,2001.6,2001.5,2.37299]
[1743028565695,0.99908,2001.6,2001.5,0.99909]
[1743028566293,0.99908,2001.7,2001.6,0.99904]
[1743028566604,0.99913,2001.6,2001.5,0.99909]
[1743028566907,0.99913,2001.5,2001.4,1.3589]
[1743028567202,0.99913,2001.5,2001.1,4.20708]
[1743028567203,0.99928,2001.2,2001.1,4.20708]
[1743028567600,0.99928,2001.2,2001.1,45.00708]
[1743028568306,0.99927,2001.3,2001.2,0.99924]
[1743028568505,2.34577,2001.3,2001.2,0.99924]
[1743028568693,2.34577,2001.3,2001.2,2.40134]
[1743028568898,2.34577,2001.3,2001.2,1.4021]
[1743028569601,0.99928,2001.2,2001.1,3.2078]
[1743028569801,2.34578,2001.2,2001.1,3.2078]
[1743028570002,2.34578,2001.2,2001.1,4.20713]
[1743028570194,2.34578,2001.2,2001.1,4.6099]
[1743028570393,2.34578,2001.2,2001.1,1.4021]
[1743028571196,1.3465,2001.2,2001.1,2.40143]
[1743028571506,3.16623,2001.5,2001.4,0.99918]
[1743028571507,1.66757,2001.5,2001.4,0.99918]
[1743028571701,3.10377,2001.5,2001.4,0.99918]
[1743028571917,3.10377,2001.5,2001.4,41.79918]
[1743028572405,3.10377,2001.5,2001.4,43.19108]
[1743028573300,2.43537,2001.5,2001.4,43.19108]
[1743028576604,2.43533,2001.5,2001.4,43.19108]
[1743028579497,1.70702,2001.6,2001.5,0.99913]
[1743028579697,3.01292,2001.6,2001.5,2.34113]
[1743028579903,3.01292,2001.6,2001.5,3.03533]
[1743028580103,4.20685,2001.7,2001.6,0.99908]
[1743028580310,5.51275,2001.7,2001.6,2.34108]
[1743028580709,1.3059,2001.7,2001.6,2.34108]
[1743028580909,2.30493,2001.7,2001.6,2.34108]
[1743028581211,1.3059,2001.7,2001.6,2.34108]
[1743028582804,0.99899,2001.8,2001.6,2.34108]
[1743028582805,0.99899,2001.8,2001.7,0.99903]
[1743028583009,2.35099,2001.8,2001.7,3.02783]
[1743028586411,2.35098,2001.8,2001.7,3.02783]
[1743028588317,1.352,2001.8,2001.7,3.02783]
[1743028589017,2.35098,2001.8,2001.7,3.02783]
[1743028589415,1.352,2001.8,2001.7,3.02783]
[1743028589909,2.35098,2001.8,2001.7,3.02783]
[1743028590207,1.352,2001.8,2001.7,3.02783]
[1743028592220,2.35098,2001.8,2001.7,3.02783]
[1743028593409,0.99898,2001.9,2001.8,0.99893]
[1743028593718,0.99898,2001.9,2001.8,2.30723]
[1743028593914,0.99898,2001.9,2001.8,2.97753]
[1743028594719,2.39188,2001.9,2001.8,2.97753]